{"text_format":"3","workbook":"xlsx","n_sheets":7,"sheets":["Opening","Trekker","Werktuig","Zelfrijder","Index","Toelichting","onderhoudspercentage"],"not_rendered":{"charts":2,"macros":1,"defined_names":12,"comments":4},"read":"whole","date_system":"1900"}

{"sheet":"Opening","index":0,"n_rows":41,"n_cols":8,"rows_kept":41,"merged":[[1,1,1,2],[2,1,2,12]]}
[]
[]
[null,"Model Tariefberekening"]
[]
[null,null,"U kunt op afzonderlijke werkbladen een tarief berekenen voor een:"]
[{"$nulls":3},"1. Trekker"]
[{"$nulls":3},"2. Werktuig"]
[{"$nulls":3},"3. Zelfrijder"]
[null,null,"Verder kunt u op het volgende werkblad een index berekenen:"]
[{"$nulls":3},"4. Index"]
[null,null,"Klik op het betreffende woord om naar dit werkblad te gaan."]
[]
[null,null,"Algemene toelichting:"]
{"$rows_empty":21}
[null,null,"Dit model is een uitgave van:",{"$nulls":3},"CUMELA Nederland"]
[{"$nulls":6},"Postbus 1156"]
[{"$nulls":6},"3680 BD  NIJKERK"]
[{"$nulls":6},"tel.","(033) 247 49 00"]
[{"$nulls":6},"fax","(033) 247 49 01"]
[{"$nulls":6},"e-mail","info@cumela.nl"]
[{"$nulls":6},"website","www.cumela.nl"]

{"sheet":"Trekker","index":1,"n_rows":42,"n_cols":10,"rows_kept":42,"merged":[[1,2,1,7],[20,3,20,4],[21,4,21,5]]}
[]
[null,"Trekker:"]
[null,"Omschrijving","Uitgangspunten"]
[null,"vermogen",120,"kW of in PK:",null,null,{"$f":"IF(C4>0,C4,ROUND(E4*0.735499,0)) & \" kW\"","v":"120 kW"}]
[null,"vervangingswaarde",{"v":100000,"d":"€ 100,000"},{"$nulls":3},{"$f":"C5","v":{"v":100000,"d":"€ 100,000"}}]
[null,"restwaarde in % of EUR",{"v":0.4,"d":"40.0%"},"of in € ",null,null,{"$f":"IF(C6>0,C6*G5,E6)","v":{"v":40000,"d":"€ 40,000"}}]
[null,"gebruiksuren",{"v":1000,"d":"1,000"},"uur"]
[null,"afschrijving in % of jaren",null,"van VW of ",5,"jaar",{"$f":"IF(C8+E8=0,\"\",IF(C8>0,ROUND((G5-G6)/G9,1),E8)&\" jaar\")","v":"5 jaar"}]
[null,"afschrijving / jaar",{"$nulls":4},{"$f":"IF(C8>0,C8*G5,IF(E8=0,\"\",(G5-G6)/E8))","v":{"v":12000,"d":"€ 12,000"}}]
[null,null,"In procenten","of","in euro's"]
[null,"rente",{"v":0.05,"d":"5.0%"},"van VW",null,null,{"$f":"C11*((G5+G6)/2)","v":{"v":3500,"d":"€ 3,500"}}]
[null,"reparatie en onderhoud",{"v":0.03,"d":"3.0%"},"van VW",null,null,{"$f":"IF(C12>0,C12*$G$5,E12)","v":{"v":3000,"d":"€ 3,000"}}]
[null,"arbeid eigen onderhoud",{"v":0.01,"d":"1.0%"},"van VW",null,null,{"$f":"IF(C13>0,C13*$G$5,E13)","v":{"v":1000,"d":"€ 1,000"}}]
[null,"onroerend goed",{"v":0.005,"d":"0.50%"},"van VW",null,null,{"$f":"IF(C14>0,C14*$G$5,E14)","v":{"v":500,"d":"€ 500"}}]
[null,"verzekering",{"v":0.015,"d":"1.5%"},"van VW",null,null,{"$f":"IF(C15>0,C15*$G$5,E15)","v":{"v":1500,"d":"€ 1,500"}}]
[null,"algemene kosten",{"v":0.02,"d":"2.0%"},"van VW",null,null,{"$f":"IF(C16>0,C16*$G$5,E16)","v":{"v":2000,"d":"€ 2,000"}}]
[]
[null,"totaal per jaar",{"$nulls":4},{"$f":"SUM(G9:G16)","v":{"v":23500,"d":"€ 23,500"}}]
[]
[null,"kosten per uur",{"$nulls":4},{"$f":"IF(C7=0,0,G18/C7)","v":{"v":23.5,"d":"€ 23.50"}},null,null,{"$f":"((G20-((C11-C38)*((1+G6/G5)/2)*C5)/C7)/(1+C37))","v":{"v":20,"d":"€ 20.00000"}}]
[{"$nulls":3},"Brandstofgebruik   "]
[{"$nulls":3},"berekend ","eigen waarde"]
[null,"belastingspercentage of liter per uur",null,{"$f":"(C23*IF(C4>0,C4,E4*0.735499)/3.6666667)","v":{"v":0,"d":"0.0"}},{"v":35,"d":"35.0"},"liter"]
[null,"brandstof prijs",{"v":0.86,"d":"€ 0.86"},"/ liter"]
[null,"smeermiddelen",{"v":0.01,"d":"1%"},"toeslag"]
[null,"brandstof + smeermid.",{"$nulls":4},{"$f":"IF(E23=0,D23*C24*(1+C25),E23*C24*(1+C25))","v":{"v":30.401,"d":"€ 30.40"}},null,null,{"$f":"(G26/(C24/C39))","v":{"$error":"#DIV/0!"}}]
[]
[null,"arbeidskosten",{"v":30,"d":"€ 30.00"}]
[null,"bedrijfsleidingverg.",{"v":0.01,"d":"1.0%"},{"$nulls":3},{"$f":"C28*(1+C29)","v":{"v":30.3,"d":"€ 30.30"}},null,null,{"$f":"(G29/(1+C40))","v":30.3}]
[null,"Subtotaal",{"$nulls":4},{"$f":"G20+G26+G29","v":{"v":84.201,"d":"€ 84.20"}}]
[null,"bedrijfsrisico",{"v":0.1,"d":"10.0%"},{"$nulls":3},{"$f":"C31*G30","v":{"v":8.4201,"d":"€ 8.42"}}]
[]
[null,"tarief",{"$nulls":4},{"$f":"G30+G31","v":{"v":92.6211,"d":"€ 92.62"}},null,null,{"$f":"((J20+J26+J29)*(1+C31))","v":{"$error":"#DIV/0!"}}]
[]
[null,"Afgerond tarief per uur:",{"$nulls":4},{"$f":"ROUND(G33,0)","v":{"v":93,"d":"€ 93.00"}}]
[null,"Index berekenen?","ja",{"$nulls":3},{"$f":"IF(ISBLANK(E37),\"\",\"Index\")","v":""}]
[null,{"$f":"IF(C36=\"Ja\",\"Prijsstijging machine\",\"\")","v":"Prijsstijging machine"}]
[null,{"$f":"IF(AND(C37<>\"\",C36=\"Ja\"),\"Rentepercentage vorig jaar\",\"\")","v":""}]
[null,{"$f":"IF(AND(C38<>\"\",C36=\"ja\"),\"Brandstofprijs vorig jaar\",\"\")","v":""}]
[null,{"$f":"IF(AND(C39<>\"\",C36=\"ja\"),\"Index arbeidskosten\",\"\")","v":""}]
[null,{"$f":"IF(AND(C40<>\"\",C36=\"ja\"),CONCATENATE(\"Berekende indexcijfer voor de \",LOWER($C$2),\":\"),\"\")","v":""},{"$nulls":4},{"$f":"IF(AND(C40<>\"\",C36=\"ja\"),(G33/((((G20-((C11-C38)*((1+G6/G5)/2)*C5)/C7)/(1+C37))+(G26/(C24/C39))+(G29/(1+C40)))*(1+C31)))-1,\"\")","v":""}]
[null,"Toelichting:"]

{"sheet":"Werktuig","index":2,"n_rows":89,"n_cols":7,"rows_kept":89,"merged":[[1,2,1,7],[2,2,2,5],[23,3,23,5]]}
[]
[null,"Werktuig:"]
[null,"Omschrijving","Uitgangspunten"]
[]
[null,"vervangingswaarde",{"v":25000,"d":"€ 25,000.00"},{"$nulls":3},{"$f":"C5","v":{"v":25000,"d":"€ 25,000"}}]
[null,"restwaarde in % of EUR",{"v":0.1,"d":"10.0%"},"of in € ",null,null,{"$f":"IF(C6>0,C6*G5,E6)","v":{"v":2500,"d":"€ 2,500"}}]
[null,"gebruiksuren",250,"uur"]
[null,"afschrijvings in % of jaren",{"v":0.1,"d":"10.0%"},"van VW of ",null,"jaar",{"$f":"IF(C8+E8=0,\"\",IF(C8>0,ROUND((G5-G6)/G9,1),E8)&\" jaar\")","v":"9 jaar"}]
[null,"afschrijving / jaar",{"$nulls":4},{"$f":"IF(C8>0,C8*G5,IF(E8=0,\"\",(G5-G6)/E8))","v":{"v":2500,"d":"€ 2,500"}}]
[null,null,"In procenten","of","in euro's"]
[null,"rente",{"v":0.04,"d":"4.0%"},{"$nulls":3},{"$f":"C11*((G5+G6)/2)","v":{"v":550,"d":"€ 550"}}]
[null,"reparatie en onderhoud",{"v":0.03,"d":"3.0%"},"van VW",null,null,{"$f":"IF(C12>0,C12*$G$5,E12)","v":{"v":750,"d":"€ 750"}}]
[null,"arbeid eigen onderhoud",{"v":0.03,"d":"3.0%"},"van VW",null,null,{"$f":"IF(C13>0,C13*$G$5,E13)","v":{"v":750,"d":"€ 750"}}]
[null,"onroerend goed",{"v":0.03,"d":"3.0%"},"van VW",null,null,{"$f":"IF(C14>0,C14*$G$5,E14)","v":{"v":750,"d":"€ 750"}}]
[null,"verzekering",{"v":0.01,"d":"1.0%"},"van VW",null,null,{"$f":"IF(C15>0,C15*$G$5,E15)","v":{"v":250,"d":"€ 250"}}]
[null,"algemene kosten",{"v":0.01,"d":"1.0%"},"van VW",null,null,{"$f":"IF(C16>0,C16*$G$5,E16)","v":{"v":250,"d":"€ 250"}}]
[]
[null,"totaal per jaar",{"$nulls":4},{"$f":"SUM(G9:G16)","v":{"v":5800,"d":"€ 5,800"}}]
[]
[null,"kosten per uur",{"$nulls":4},{"$f":"IF(C7=0,0,G18/C7)","v":{"v":23.2,"d":"23.20"}}]
[null,"bedrijfsrisico",{"v":0.05,"d":"5.0%"},{"$nulls":3},{"$f":"G20*C21","v":1.16}]
[null,"Tarief exclusief trekker",{"$nulls":4},{"$f":"G20+G21","v":24.36}]
[]
[null,{"$f":"\"Tarief \"&IF(AND(C24=0,Trekker!C2>\"0\"),Trekker!C2,\"trekker\")","v":"Tarief trekker"},{"$nulls":4},{"$f":"IF(C5=\"\",0,IF(ISBLANK(C24),Trekker!G33,C24))","v":{"v":92.6211,"d":"92.62"}}]
[]
[null,"Totaal tarief:",{"$nulls":4},{"$f":"G22+G24","v":{"v":116.9811,"d":"116.98"}}]
[]
[null,"Afgerond tarief per uur:",{"$nulls":4},{"$f":"ROUND(G26,0)","v":{"v":117,"d":"€ 117.00"}}]
[null,"Optie om een ander eenheid of mengtarief te hanteren."]
[null,"Andere eenheid?","nee",null,"eigen tarief",null,"voorstel"]
[null,{"$f":"IF(OR(C30=\"Mengtarief\",C30=\"JA\"),\"eenheid\",\" \")","v":" "},null,{"$f":"IF(C30=\"mengtarief\",\"tarief / uur:\",\"\")","v":""},null,null,{"$f":"IF(C30=\"Mengtarief\",ROUND((Trekker!G26+Trekker!G29)*(1+Trekker!C29)*(1+Trekker!C31),0),\"\")","v":""}]
[null,{"$f":"IF(AND(C31>0,OR(C30=\"JA\",C30=\"Mengtarief\")),\"capaciteit\",\" \")","v":" "},null,{"$f":"IF(B32=\"capaciteit\",C31&\" / uur\",\"\")","v":""}]
[null,{"$f":"IF(AND(C32>0,C30=\"JA\"),\"tarief per \"&C31,\" \")","v":" "},{"$f":"IF(AND(B32=\"Capaciteit\",C32>0),IF(IF(C30=\"Ja\",G26/C32,IF(AND(C30=\"mengtarief\",E31=\"\"),(G26-G31)/C32,(G26-E31)/C32))<10,ROUND(IF(C30=\"Ja\",G26/C32,IF(AND(C30=\"mengtarief\",E31=\"\"),(G26-G31)/C32,(G26-E31)/C32)),1),ROUND(IF(C30=\"Ja\",G26/C32,IF(AND(C30=\"mengtarief\",E31=\"\"),(G26-G31)/C32,(G26-E31)/C32)),0)),\"\")","v":""},{"$f":"IF(AND(C32>0,C30=\"JA\"),\"per \"&C31,IF(AND(C32>0,C30=\"Mengtarief\"),\"per \"&C31&\" + € \"&IF(E31=\"\",G31,E31)&\" per uur\",\"\"))","v":""}]
[null,"Index berekenen?","ja",{"$nulls":3},{"$f":"IF(ISBLANK(E35),\"\",\"Index\")","v":""}]
[null,{"$f":"IF(C34=\"Ja\",\"Prijsstijging werktuig\",\"\")","v":"Prijsstijging werktuig"}]
[null,{"$f":"IF(AND(C35<>\"\",C34=\"Ja\"),\"Rentepercentage vorig jaar\",\"\")","v":""}]
[null,{"$f":"IF(AND(C36<>\"\",C34=\"ja\"),CONCATENATE(\"Berekende indexcijfer voor de \",LOWER(C2),\":\"),\"\")","v":""},{"$nulls":4},{"$f":"IF(AND(C34=\"Ja\",C36=\"\"),\"\",(G20/((G20-((C11-C36)*((1+G6/G5)/2)*C5)/C7)/(1+C35)))-1)","v":""}]
[null,{"$f":"IF(B37>\"0\",\"Prijsstijging trekker\",\"\")","v":""},{"$nulls":4},{"$f":"IF(C34=\"ja\",IF(C38>0,C38,Trekker!G41),\"\")","v":""}]
[null,{"$f":"IF(AND(B38>\"a\",G38<>\"\"),\"Totale prijsindex\",\"\")","v":""},{"$nulls":4},{"$f":"IF(B39>\"a\",((G22/G28)*G37)+((G24/G28)*G38),\"\")","v":""}]
[null,"Toelichting:     "]
{"$rows_empty":46}
[null,"ja"]
[null,"nee"]
[null,"mengtarief"]

{"sheet":"Zelfrijder","index":3,"n_rows":47,"n_cols":7,"rows_kept":47,"merged":[[1,2,1,7],[20,3,20,4],[21,4,21,5]]}
[]
[null,"Zelfrijder:"]
[null,"Omschrijving","Uitgangspunten"]
[null,"vermogen",250,"kW of in PK:",null,null,{"$f":"IF(C4>0,C4,ROUND(E4*0.735499,0)) & \" kW\"","v":"250 kW"}]
[null,"vervangingswaarde",{"v":100000,"d":"€ 100,000"},{"$nulls":3},{"$f":"C5","v":{"v":100000,"d":"€ 100,000"}}]
[null,"Restwaarde in % of EUR",null,"of in €",{"v":25000,"d":"25,000"},null,{"$f":"IF(C6>0,C6*G5,E6)","v":{"v":25000,"d":"€ 25,000"}}]
[null,"gebruiksuren",350,"uur"]
[null,"afschrijving in % of jaren",{"v":0.15,"d":"15.0%"},"van VW of ",null,"jaar",{"$f":"IF(C8+E8=0,\"\",IF(C8>0,ROUND((G5-G6)/G9,1),E8)&\" jaar\")","v":"5 jaar"}]
[null,"afschrijving / jaar",{"$nulls":4},{"$f":"IF(C8>0,C8*G5,IF(E8=0,\"\",(G5-G6)/E8))","v":{"v":15000,"d":"€ 15,000"}}]
[null,null,"In procenten","of","in euro's"]
[null,"rente",{"v":0.04,"d":"4.0%"},"van VW",null,null,{"$f":"C11*((G5+G6)/2)","v":{"v":2500,"d":"€ 2,500"}}]
[null,"reparatie en onderhoud",{"v":0.04,"d":"4.0%"},"van VW",null,null,{"$f":"IF(C12>0,C12*$G$5,E12)","v":{"v":4000,"d":"€ 4,000"}}]
[null,"arbeid eigen onderhoud",{"v":0.02,"d":"2.0%"},"van VW",null,null,{"$f":"IF(C13>0,C13*$G$5,E13)","v":{"v":2000,"d":"€ 2,000"}}]
[null,"onroerend goed",{"v":0.02,"d":"2.0%"},"van VW",null,null,{"$f":"IF(C14>0,C14*$G$5,E14)","v":{"v":2000,"d":"€ 2,000"}}]
[null,"verzekering",{"v":0.02,"d":"2.0%"},"van VW",null,null,{"$f":"IF(C15>0,C15*$G$5,E15)","v":{"v":2000,"d":"€ 2,000"}}]
[null,"algemene kosten",{"v":0.02,"d":"2.0%"},"van VW",null,null,{"$f":"IF(C16>0,C16*$G$5,E16)","v":{"v":2000,"d":"€ 2,000"}}]
[]
[null,"totaal per jaar",{"$nulls":4},{"$f":"SUM(G9:G16)","v":{"v":29500,"d":"€ 29,500"}}]
[]
[null,"kosten per uur",{"$nulls":4},{"$f":"IF(C7=0,0,G18/C7)","v":{"v":84.28571428571429,"d":"84.29"}}]
[{"$nulls":3},"Brandstofgebruik   "]
[{"$nulls":3},"berekend","eigen waarde"]
[null,"belastingspercentage of liters per uur",{"v":0.8,"d":"80%"},{"$f":"(C23*IF(C4>0,C4,E4*0.735499)/3.6666667)","v":{"v":54.54545404958678,"d":"54.5"}},null,"liter"]
[null,"brandstof prijs",{"v":1.2,"d":"€ 1.20"},"/ liter"]
[null,"smeermiddelen",{"v":0.025,"d":"3%"}]
[null,"brandstof + smeermid.",{"$nulls":4},{"$f":"IF(E23=0,D23*C24*(1+C25),E23*C24*(1+C25))","v":{"v":67.09090848099174,"d":"67.09"}}]
[]
[null,"arbeidskosten",{"v":60,"d":"€ 60.00"}]
[null,"bedrijfsleidingverg.",{"v":0.1,"d":"10.0%"},{"$nulls":3},{"$f":"C28*(1+C29)","v":{"v":66,"d":"66.00"}}]
[null,"Subtotaal 2:",{"$nulls":4},{"$f":"G20+G26+G29","v":{"v":217.37662276670602,"d":"217.38"}}]
[null,"bedrijfsrisico",{"v":0.1,"d":"10.0%"},{"$nulls":3},{"$f":"C31*G30","v":{"v":21.737662276670605,"d":"21.74"}}]
[]
[null,"tarief",{"$nulls":4},{"$f":"G30+G31","v":{"v":239.11428504337664,"d":"239.11"}}]
[]
[null,"Afgerond tarief per uur:",{"$nulls":4},{"$f":"ROUND(G33,0)","v":{"v":239,"d":"€ 239.00"}}]
[null,"Optie om een ander eenheid of mengtarief te hanteren."]
[null,"Andere eenheid?","ja",null,"eigen tarief",null,"voorstel"]
[null,{"$f":"IF(OR(C37=\"Mengtarief\",C37=\"JA\"),\"eenheid\",\" \")","v":"eenheid"},"ha",{"$f":"IF(C37=\"mengtarief\",\"tarief / uur:\",\"\")","v":""},null,null,{"$f":"IF(C37=\"Mengtarief\",ROUND((G29+G26)*(1+C29)*(1+C31),0),\"\")","v":""}]
[null,{"$f":"IF(AND(C38>0,OR(C37=\"JA\",C37=\"Mengtarief\")),\"capaciteit\",\" \")","v":"capaciteit"},null,{"$f":"IF(B39=\"capaciteit\",C38&\" / uur\",\" \")","v":"ha / uur"}]
[null,{"$f":"IF(AND(C39>0,C37=\"JA\"),\"tarief per \"&C38,\" \")","v":" "},{"$f":"IF(AND(B39=\"Capaciteit\",C39>0),IF(IF(C37=\"Ja\",G33/C39,IF(AND(C37=\"mengtarief\",E38=\"\"),(G33-G38)/C39,(G33-E38)/C39))<10,ROUND(IF(C37=\"Ja\",G33/C39,IF(AND(C37=\"mengtarief\",E38=\"\"),(G33-G38)/C39,(G33-E38)/C39)),1),ROUND(IF(C37=\"Ja\",G33/C39,IF(AND(C37=\"mengtarief\",E38=\"\"),(G33-G38)/C39,(G33-E38)/C39)),0)),\"\")","v":""},{"$f":"IF(AND(C39>0,C37=\"JA\"),\"per \"&C38,IF(AND(C39>0,C37=\"Mengtarief\"),\"per \"&C38&\" + € \"&IF(E38=\"\",G38,E38)&\" per uur\",\"\"))","v":""}]
[null,"Index berekenen?","ja",{"$nulls":3},{"$f":"IF(ISBLANK(E42),\"\",\"Index\")","v":""}]
[null,{"$f":"IF(C41=\"Ja\",\"Prijsstijging machine\",\"\")","v":"Prijsstijging machine"}]
[null,{"$f":"IF(AND(C42<>\"\",C41=\"Ja\"),\"Rentepercentage vorig jaar\",\"\")","v":""}]
[null,{"$f":"IF(AND(C43<>\"\",C41=\"ja\"),\"Brandstofprijs vorig jaar\",\"\")","v":""}]
[null,{"$f":"IF(AND(C44<>\"\",C41=\"ja\"),\"Index arbeidskosten\",\"\")","v":""}]
[null,{"$f":"IF(AND(C45<>\"\",C41=\"ja\"),CONCATENATE(\"Berekende indexcijfer voor de \",LOWER(C2),\":\"),\"\")","v":""},{"$nulls":4},{"$f":"IF(C45=\"\",\"\",(G33/((((G20-((C11-C43)*((1+G6/G5)/2)*C5)/C7)/(1+C42))+(G26/(C24/C44))+(G29/(1+C45)))*(1+C31)))-1)","v":""}]
[null,"Toelichting:"]

{"sheet":"Index","index":4,"n_rows":27,"n_cols":6,"rows_kept":27,"merged":[[2,2,2,5],[11,3,11,4],[21,2,21,6],[22,2,22,6],[23,2,23,6],[24,2,24,6],[25,2,25,6],[26,2,26,6]]}
[]
[null,"Indexberekening"]
[null,"Omschrijving:"]
[null,null,"Tarief","Aandeel in de kosten","Kosten index","Prijs index"]
[null,"Tarief vorig jaar:"]
[null,"Arbeidskosten",null,{"$f":"IF($C$5>0,C6/$C$5,\"\")","v":""},null,{"$f":"IF(D6=\"\",\"\",D6*E6)","v":""}]
[null,"Brandstof",null,{"$f":"IF($C$5>0,C7/$C$5,\"\")","v":""},null,{"$f":"IF(D7=\"\",\"\",D7*E7)","v":""}]
[null,"Hulpstoffen",null,{"$f":"IF($C$5>0,C8/$C$5,\"\")","v":""},null,{"$f":"IF(D8=\"\",\"\",D8*E8)","v":""}]
[null,"Wijziging rentepercentage"]
[null,"Vervangingswaarde / jaarkosten",null,{"$f":"IF(SUM(D6:D8)=0,\"\",D11-D6-D7-D8)","v":""},null,{"$f":"IF(D10=\"\",\"\",D10*(E10+E9))","v":""}]
[{"$nulls":3},{"v":1,"d":"100.0%"}]
[null,"NIEUW TARIEF",{"$f":"IF(AND(C5=0,F12=0),\"\",C5*(1+F12))","v":""},"PRIJSINDEX: ",null,{"$f":"SUM(F6:F10)","v":{"v":0,"d":"0.0%"}}]
[]
[null,"Berekenen van de arbeidskostenindex:"]
[null,"Soort dienstverband:","aandeel in %","Kosten index","Totaal index"]
[null,"* vast",null,null,{"$f":"IF(C16=\"\",\"\",C16*D16)","v":""}]
[null,"* vast + obf",null,null,{"$f":"IF(C17=\"\",\"\",C17*D17)","v":""}]
[null,"* los",null,null,{"$f":"IF(C18=\"\",\"\",C18*D18)","v":""}]
[null,"TOTAAL",{"$f":"SUM(C16:C18)","v":{"v":0,"d":"0.0%"}},null,{"$f":"SUM(E16:E18)","v":{"v":0,"d":"0.0%"}}]
[]
[]
[null,null,"TOELICHTING"]
[null,"Aandeel in de kosten","De systematiek voor de berekening van de index is als volgt:\n1) Bereken het aandeel arbeidskosten in het tarief\n    Als tarief € 50 bedraagt en de arbeidskosten is € 25 / \n    uur dan is het aandeel 50 %.\n2) Bereken zo ook de aandeel voor brandstof\n3) Ingeval van meegeleverde hulpstoffen (touw bij persen \n    bijvoorbeeld), kan ook dit ingevuld worden.\n4) Het kostenaandeel voor prijs machine of\n    vervangingswaarde is het resterende deel;\n   dus 100 % minus de som van de eerste drie"]
[null,"Kostenindex","Vul hierin de kostenstijging van het afgelopen jaar. "]
[null,"Prijs index","De totaal index wordt berekend door het kostenaandeel maal de index. \nHet kostenaandeel in kosten is dus de wegingsfactor."]
[null,"Arbeidskostenindex","In deze tabel kan aan de hand van de verhouding vast, vast met overbrugging (OBF) en los dienstverband  de prijsindex berekend worden.\nDe kostenindex kan namelijk per dienstverband varieren door primiewijzigingen."]
[null,{"$f":"B10","v":"Vervangingswaarde / jaarkosten"},"Op grond van de vervangingswaarde worden de jaarkosten berekend in onze berekeningssystematiek. Kortom, het uitgangspunt is dat alle kostenstijging gelijke tred houden met de kostenstijging van de machines.\nEr wordt alleen nog als extra gevraagd om de wijziging in het rentepercentage op te geven. \nDe totale kostenindex voor de machine wordt vastgesteld door de opgegeven index bij de \"prijs machines\" + de wijziging in rentepercentage."]

{"sheet":"Toelichting","index":5,"n_rows":57,"n_cols":4,"rows_kept":57}
[]
["Klik op de blauw onderlijnde woorden om terug te keren naar het rekenmodel","Toelichting berekening model","Normen","Eigen notitie"]
[null,"Bij het werkblad \"Werktuig\":"]
["Vervangingswaarde","De waarde van de machine als je deze vervangt door een gelijksoortige machine. (Indien de machine door een tweede hands machine wordt vervangen is het dus de tweede handswaarde.)","Afhankelijk van de soort en benutting van de machine.."]
["Restwaarde","De waarde van de machine aan het einde van de afschrijvingstermijn.\nU kunt dit als percentage van de vervangingswaarde opgeven of als vast bedrag."]
["Gebruiksuren","De  (te verwachte) in rekening te brengen uren per jaar. Let op: dit zijn niet de draaiuren van de machine."]
["Afschrijvingen","Het afschrijvingsbedrag kan berekend worden door het afschrijvingspercentage in te geven of de levensduur in jaren. Het afschrijvingsbedrag wordt als volgt berekent:\n- percentage: afschrijvingspercentage * vervangingswaarde\n- levensduur: (vervangingswaarde - restwaarde) / levensduur"]
["Rente","Voer hier het rentepercentage in. De rentekosten wordt berekend door dit percentage maal de gemiddelde waarde van de machine. In formule is de berekening als volgt:\nRente % *((Vervangingswaarde + restwaarde)/2)","Algemeen uitgangspunt: de rente voor een 5-jarige lening inclusief toeslag. Voor 2006 bedraagt dit 5,5 % (bron: Rabo )"]
["Reparatie en onderhoud","Vul hierin de reparatie en onderhoudskosten. U kunt kiezen voor een percentage of een vast bedrag in . Het is een gemiddeld bedrag over meerdere jaren. Houd dus ook rekening met incidenteel onderhoud eens in de zoveel jaar.\nDe kosten worden primair berekend op basis van het percentage. Zorg daarom dat dit veld leeg is als u een vast bedrag in de berekening wilt opnemen.","Gemiddeld 4,9 % van de aanschafwaarde; variatie agrarische / grondverzet 5,2 % - 4,1 %. Bron: Bedrijfs-economisch onderzoek (BEO) boekjaar 2005"]
["arbeid eigen onderhoud","Er wordt in het algemeen ook door eigen mensen reparatie en (dagelijks) onderhoud aan de machine verricht. Denk alleen maar aan het doorsmeren en schoonmaken van een machine. \nDe kosten worden primair berekend op basis van het percentage. Zorg daarom dat dit veld leeg is als u een vast bedrag in de berekening wilt opnemen.\n(Indien u de tijd aan eigen reparatie reeds in de arbeidskosten hebt opgenomen, hoeft dat uiteraard hier niet. Echter, het is wel verstandig deze tijd aan de juiste machine toe te rekenen."]
["Onroerend goed","Kosten van onroerend goed zijn alle kosten aan gebouwen en erf, inclusief verzekeringen en afschrijvingen.\nU kunt dit als percentage van de vervangingswaarde of in  euro's invoeren. Indien het percentage is ingevuld, wordt dit bedrag genomen. Zorg dat het veld percentage leeg is u het bedrag in  wilt opnemen in de berekening.","Gemiddeld 1,6 % van de aanschafwaarde; variatie 1,4% - 2,4%; bron BEO boekjaar 2005"]
["Verzekering","Kosten van de directe verzekeringskosten van de betreffende machine. De kosten van bedrijfsverzekeringen vallen onder algemene kosten.\nU kunt dit als percentage van de vervangingswaarde of in euro's invoeren. Indien het percentage is ingevuld, wordt dit bedrag genomen. Zorg dat het veld percentage leeg is u het bedrag in euro's wilt opnemen in de berekening.","Gemiddeld 1,1 % van de aanschafwaarde; variatie 1,0% - 1,3%% bron BEO boekjaar 2005\n"]
["Algemene kosten","Onder algemene kosten vallen de kosten voor auto, telefoon, administratie, porti, reclame contributies, abonnementen, elektra, gas, enz.\nU kunt dit als percentage van de vervangingswaarde of in euro's invoeren. De kosten worden primair berekend op basis van het percentage. Zorg daarom dat dit veld leeg is als u een vast bedrag in de berekening wilt opnemen.","Gemiddeld 2,0 % van de aanschafwaarde; variatie 1,5% - 2,8 %; bron BEO boekjaar 2005"]
["Kosten per uur","De totale kosten gedeeld door het aantal gebruiksuren."]
["Bedrijfsrisico","Bedrijfsrisico dient om de kosten voor onvoorziene omstandigheden zoals lagere benutting door extreme weersomstandigheden of een onverwachte snelle economische veroudering vanwege bijvoorbeeld politieke maatregelen.\nDe kosten voor bedrijfsrisico worden als opslagpercentage ingevoerd.\nOok de nog niet toegerekende kosten en de door u vereiste winst kunt in in dit percentage verwerken. "]
["Tarief trekker","Indien u een tariefberekening hebt uitgevoerd voor de trekker in het werkblad trekker, dan wordt dit tarief hier opgenomen.\nIn het blauwe vlak kunt u een eigen tarief invoeren."]
["Optie om andere eenheid in te voeren.","Onder eenheid wordt verstaan hectares, m3 (kuubs) m (strekkende meters enz.\nAls u bijvoorbeeld een hectaretarief wilt berekend, selecteert u \"Ja\" bij de vraag \"andere eenheid?\". Bij eenheid vult u in \"ha.\" en bij capaciteit de capaciteit per uur. Let op dit kan per situatie verschillen. Vervolgens verschijnt het hectaretarief.\nU kunt ook de optie \"mengtarief\" selecteren bij de vraag \"andere eenheid?\"\nEr verschijnt vervolgens een voorstel voor het gedeelte dat u als uurtarief kan hanteren. Dit voorstel wordt berekend door de arbeidskosten en brandstof. Wilt u een ander bedrag, dan kunt u dat invoeren in het betreffende blauwe vlak."]
["Index berekenen","Via deze optie is het mogelijk om de prijswijziging ten opzichte van het afgelopen jaar te berekenen. Deze index kan bijvoorbeeld gehanteerd worden bij verhoging van reeds vastgestelde prijzen. De invloed van wijziging in de uitgangspunten voor bijvoorbeeld onderhoud, hanteren van een ander afschrijvingsregime blijven buiten beschouwing.  De index van deze posten worden gerelateerd aan de vervangingswaarde. \nMet nadruk wijzen wij er wel op dat er kosten zijn die meer of minder stijgen dan de vervangingswaarde. Denk bijvoorbeeld aan de assurantiekosten. Als dit alles in de berekening mee te nemen, dient er voor zowel het voorgaande jaar  en dit jaar een complete kostprijsberekening te worden gedaan. Vervolgens kunt u het huidige tarief (a) delen op die van vorig jaar(b). \nIn formule ziet het er dan als volgt uit: (a / b) * 100% -1 = prijsindex"]
[null,"Bij het werkblad \"Trekker\":"]
["Vermogen","Hier kunt u het vermogen invullen in kW of in pk's. Indien u het bedrag in pk's opgeeft wordt dit automatisch omgerekend in kW's. 1 pk is 0,735 KW. Op basis van het vermogen kan eventueel het brandstofverbruik berekend worden."]
[{"$f":"A4","v":"Vervangingswaarde"},"De waarde van de machine als je deze vervangt door een gelijksoortige machine. (Indien de machine door een tweede hands machine wordt vervangen is het dus de tweede handswaarde.)"]
["Restwaarde","De waarde van de machine aan het einde van de afschrijvingstermijn.\nU kunt dit als percentage van de vervangingswaarde opgeven of als vast bedrag."]
["Gebruiksuren","De  (te verwachte) in rekening te brengen uren per jaar. Let op: dit zijn niet de draaiuren van de machine."]
["Afschrijvingen","Het afschrijvingsbedrag kan berekend worden door het afschrijvingspercentage in te geven of de levensduur in jaren. Het afschrijvingsbedrag wordt als volgt berekent:\n- percentage: afschrijvingspercentage * vervangingswaarde\n- levensduur: (vervangingswaarde - restwaarde) / levensduur"]
["Rente","Voer hier het rentepercentage in. De rentekosten wordt berekend door dit percentage maal de gemiddelde waarde van de machine. In formule is de berekening als volgt:\nRente % *((Vervangingswaarde + restwaarde)/2)",{"$f":"C8","v":"Algemeen uitgangspunt: de rente voor een 5-jarige lening inclusief toeslag. Voor 2006 bedraagt dit 5,5 % (bron: Rabo )"}]
["Reparatie en onderhoud","Vul hierin de reparatie en onderhoudskosten. U kunt kiezen voor een percentage of een vast bedrag in . Het is een gemiddeld bedrag over meerdere jaren. Houd dus ook rekening met incidenteel onderhoud eens in de zoveel jaar.\nDe kosten worden primair berekend op basis van het percentage. Zorg daarom dat dit veld leeg is als u een vast bedrag in de berekening wilt opnemen.",{"$f":"C9","v":"Gemiddeld 4,9 % van de aanschafwaarde; variatie agrarische / grondverzet 5,2 % - 4,1 %. Bron: Bedrijfs-economisch onderzoek (BEO) boekjaar 2005"}]
["arbeid eigen onderhoud","Er wordt in het algemeen ook door eigen mensen reparatie en (dagelijks) onderhoud aan de machine verricht. Denk alleen maar aan het doorsmeren en schoonmaken van een machine. \nDe kosten worden primair berekend op basis van het percentage. Zorg daarom dat dit veld leeg is als u een vast bedrag in de berekening wilt opnemen.\n(Indien u de tijd aan eigen reparatie reeds in de arbeidskosten hebt opgenomen, hoeft dat uiteraard hier niet. Echter, het is wel verstandig deze tijd aan de juiste machine toe te rekenen."]
["Onroerend goed","Kosten van onroerend goed zijn alle kosten aan gebouwen en erf, inclusief verzekeringen en afschrijvingen.\nU kunt dit als percentage van de vervangingswaarde of in  euro's invoeren. Indien het percentage is ingevuld, wordt dit bedrag genomen. Zorg dat het veld percentage leeg is u het bedrag in  wilt opnemen in de berekening.",{"$f":"C11","v":"Gemiddeld 1,6 % van de aanschafwaarde; variatie 1,4% - 2,4%; bron BEO boekjaar 2005"}]
["Verzekering","Kosten van de directe verzekeringskosten van de betreffende machine. De kosten van bedrijfsverzekeringen vallen onder algemene kosten.\nU kunt dit als percentage van de vervangingswaarde of in euro's invoeren. Indien het percentage is ingevuld, wordt dit bedrag genomen. Zorg dat het veld percentage leeg is u het bedrag in euro's wilt opnemen in de berekening.",{"$f":"C12","v":"Gemiddeld 1,1 % van de aanschafwaarde; variatie 1,0% - 1,3%% bron BEO boekjaar 2005\n"}]
["Algemene kosten","Onder algemene kosten vallen de kosten voor auto, telefoon, administratie, porti, reclame contributies, abonnementen, elektra, gas, enz.\nU kunt dit als percentage van de vervangingswaarde of in euro's invoeren. De kosten worden primair berekend op basis van het percentage. Zorg daarom dat dit veld leeg is als u een vast bedrag in de berekening wilt opnemen.",{"$f":"C13","v":"Gemiddeld 2,0 % van de aanschafwaarde; variatie 1,5% - 2,8 %; bron BEO boekjaar 2005"}]
["Kosten per uur","De totale kosten gedeeld door het aantal gebruiksuren."]
["Brandstof verbruik","Het brandstofverbruik kunt u bepalen door zelf het aantal liters in te vullen of via een formule te laten berekenen.\nDe formule voor de berekening brandstofverbruik is als volgt:\n(kW * belastingpercentage) /3,67)\nHet belastingpercentage is een correctie, omdat een motor nooit voor 100% belast wordt.\nNorm hiervoor is (bron IMAG):\n 2 wiel aangedreven trekker 60%\n 4 wiel aangedreven trekker 70 %\n zelfrijder 80%","Gemiddelde brandstofprijs per liter rode gasolie bedroeg over het jaar 2005 68,44 eurocent"]
["Smeermiddelen","De kosten van olie en smeermiddelen kan berekend worden via een toeslag op de brandstof van de machine. Dit percentage kunt u voor het eigen bedrijf berekenen door de totale kosten van olie en smeermiddelen per jaar te delen door de totale kosten van brandstof per jaar * 100%.","Op basis van gegevens van enkele bedrijven bleek de toeslag gemiddeld op 10% te liggen."]
["Arbeidskosten","Arbeidskosten per uur kunt u berekenen op grond van uw totale loonkosten gedeeld door de effectieve uren (uren die u kunt doorbereken). Volgens de CAO zijn er met aftrek van vakantie- feest- en ATV dagen 1.603 beschikbare uren voor een vaste full time werknemer. Dit is inclusief ziekteverzuim en exclusief bijzonder verlof. \nHoud ook rekening met de uren die u direct aan onderhoud machines besteed. Deze uren dient u feitelijk direct aan de machine toe te rekenen. In dit model is er de mogelijkheid om direct de arbeidskosten eigen reparatie en onderhoud in te kunnen voeren.","Bij een produktiviteit van 60 % en gemiddeld 200 overuren kost een vaste medewerker    € 26,15 per uur"]
["Bedrijfsleidings-vergoeding","Onder bedrijfsleiding wordt verstaan de arbeid nodig is voor organisatie, planning, acquisitie en administratie."]
[{"$f":"A15","v":"Bedrijfsrisico"},{"$f":"B15","v":"Bedrijfsrisico dient om de kosten voor onvoorziene omstandigheden zoals lagere benutting door extreme weersomstandigheden of een onverwachte snelle economische veroudering vanwege bijvoorbeeld politieke maatregelen.\nDe kosten voor bedrijfsrisico worden als opslagpercentage ingevoerd.\nOok de nog niet toegerekende kosten en de door u vereiste winst kunt in in dit percentage verwerken. "}]
[{"$f":"A18","v":"Index berekenen"},{"$f":"B18","v":"Via deze optie is het mogelijk om de prijswijziging ten opzichte van het afgelopen jaar te berekenen. Deze index kan bijvoorbeeld gehanteerd worden bij verhoging van reeds vastgestelde prijzen. De invloed van wijziging in de uitgangspunten voor bijvoorbeeld onderhoud, hanteren van een ander afschrijvingsregime blijven buiten beschouwing.  De index van deze posten worden gerelateerd aan de vervangingswaarde. \nMet nadruk wijzen wij er wel op dat er kosten zijn die meer of minder stijgen dan de vervangingswaarde. Denk bijvoorbeeld aan de assurantiekosten. Als dit alles in de berekening mee te nemen, dient er voor zowel het voorgaande jaar  en dit jaar een complete kostprijsberekening te worden gedaan. Vervolgens kunt u het huidige tarief (a) delen op die van vorig jaar(b). \nIn formule ziet het er dan als volgt uit: (a / b) * 100% -1 = prijsindex"}]
[null,"Bij het werkblad \"Zelfrijder\":"]
["Vermogen",{"$f":"B20","v":"Hier kunt u het vermogen invullen in kW of in pk's. Indien u het bedrag in pk's opgeeft wordt dit automatisch omgerekend in kW's. 1 pk is 0,735 KW. Op basis van het vermogen kan eventueel het brandstofverbruik berekend worden."}]
[{"$f":"A4","v":"Vervangingswaarde"},{"$f":"B4","v":"De waarde van de machine als je deze vervangt door een gelijksoortige machine. (Indien de machine door een tweede hands machine wordt vervangen is het dus de tweede handswaarde.)"},{"$f":"C4","v":"Afhankelijk van de soort en benutting van de machine.."}]
[{"$f":"A5","v":"Restwaarde"},"De waarde van de machine aan het einde van de afschrijvingstermijn.\nU kunt dit als percentage van de vervangingswaarde opgeven of als vast bedrag."]
["Gebruiksuren","De  (te verwachte) in rekening te brengen uren per jaar. Let op: dit zijn niet de draaiuren van de machine."]
["Afschrijvingen","Het afschrijvingsbedrag kan berekend worden door het afschrijvingspercentage in te geven of de levensduur in jaren. Het afschrijvingsbedrag wordt als volgt berekent:\n- percentage: afschrijvingspercentage * vervangingswaarde\n- levensduur: (vervangingswaarde - restwaarde) / levensduur"]
["Rente","Voer hier het rentepercentage in. De rentekosten wordt berekend door dit percentage maal de gemiddelde waarde van de machine. In formule is de berekening als volgt:\nRente % *((Vervangingswaarde + restwaarde)/2)",{"$f":"C8","v":"Algemeen uitgangspunt: de rente voor een 5-jarige lening inclusief toeslag. Voor 2006 bedraagt dit 5,5 % (bron: Rabo )"}]
["Reparatie en onderhoud","Vul hierin de reparatie en onderhoudskosten. U kunt kiezen voor een percentage of een vast bedrag in . Het is een gemiddeld bedrag over meerdere jaren. Houd dus ook rekening met incidenteel onderhoud eens in de zoveel jaar.\nDe kosten worden primair berekend op basis van het percentage. Zorg daarom dat dit veld leeg is als u een vast bedrag in de berekening wilt opnemen.",{"$f":"C9","v":"Gemiddeld 4,9 % van de aanschafwaarde; variatie agrarische / grondverzet 5,2 % - 4,1 %. Bron: Bedrijfs-economisch onderzoek (BEO) boekjaar 2005"}]
["arbeid eigen onderhoud","Er wordt in het algemeen ook door eigen mensen reparatie en (dagelijks) onderhoud aan de machine verricht. Denk alleen maar aan het doorsmeren en schoonmaken van een machine. \nDe kosten worden primair berekend op basis van het percentage. Zorg daarom dat dit veld leeg is als u een vast bedrag in de berekening wilt opnemen.\n(Indien u de tijd aan eigen reparatie reeds in de arbeidskosten hebt opgenomen, hoeft dat uiteraard hier niet. Echter, het is wel verstandig deze tijd aan de juiste machine toe te rekenen."]
["Onroerend goed","Kosten van onroerend goed zijn alle kosten aan gebouwen en erf, inclusief verzekeringen en afschrijvingen.\nU kunt dit als percentage van de vervangingswaarde of in  euro's invoeren. Indien het percentage is ingevuld, wordt dit bedrag genomen. Zorg dat het veld percentage leeg is u het bedrag in  wilt opnemen in de berekening.",{"$f":"C11","v":"Gemiddeld 1,6 % van de aanschafwaarde; variatie 1,4% - 2,4%; bron BEO boekjaar 2005"}]
["Verzekering","Kosten van de directe verzekeringskosten van de betreffende machine. De kosten van bedrijfsverzekeringen vallen onder algemene kosten.\nU kunt dit als percentage van de vervangingswaarde of in euro's invoeren. Indien het percentage is ingevuld, wordt dit bedrag genomen. Zorg dat het veld percentage leeg is u het bedrag in euro's wilt opnemen in de berekening.",{"$f":"C12","v":"Gemiddeld 1,1 % van de aanschafwaarde; variatie 1,0% - 1,3%% bron BEO boekjaar 2005\n"}]
["Algemene kosten","Onder algemene kosten vallen de kosten voor auto, telefoon, administratie, porti, reclame contributies, abonnementen, elektra, gas, enz.\nU kunt dit als percentage van de vervangingswaarde of in euro's invoeren. De kosten worden primair berekend op basis van het percentage. Zorg daarom dat dit veld leeg is als u een vast bedrag in de berekening wilt opnemen.",{"$f":"C13","v":"Gemiddeld 2,0 % van de aanschafwaarde; variatie 1,5% - 2,8 %; bron BEO boekjaar 2005"}]
[{"$f":"A31","v":"Kosten per uur"},"De totale kosten gedeeld door het aantal gebruiksuren."]
["Brandstof verbruik","Het brandstofverbruik kunt u bepalen door zelf het aantal liters in te vullen of via een formule te laten berekenen.\nDe formule voor de berekening brandstofverbruik is als volgt:\n(kW * belastingpercentage) /3,67)\nHet belastingpercentage is een correctie, omdat een motor nooit voor 100% belast wordt.\nNorm hiervoor is (bron IMAG):\n 2 wiel aangedreven trekker 60%\n 4 wiel aangedreven trekker 70 %\n zelfrijder 80%",{"$f":"C32","v":"Gemiddelde brandstofprijs per liter rode gasolie bedroeg over het jaar 2005 68,44 eurocent"}]
["Smeermiddelen","De kosten van olie en smeermiddelen kan berekend worden via een toeslag op de brandstof van de machine. Dit percentage kunt u voor het eigen bedrijf berekenen door de totale kosten van olie en smeermiddelen per jaar te delen door de totale kosten van brandstof per jaar * 100%.",{"$f":"C33","v":"Op basis van gegevens van enkele bedrijven bleek de toeslag gemiddeld op 10% te liggen."}]
["Arbeidskosten","Arbeidskosten per uur kunt u berekenen op grond van uw totale loonkosten gedeeld door de effectieve uren (uren die u kunt doorbereken). Volgens de CAO zijn er met aftrek van vakantie- feest- en ATV dagen 1.603 beschikbare uren voor een vaste full time werknemer. Dit is inclusief ziekteverzuim en exclusief bijzonder verlof. \nHoud ook rekening met de uren die u direct aan onderhoud machines besteed. Deze uren dient u feitelijk direct aan de machine toe te rekenen. In dit model is er de mogelijkheid om direct de arbeidskosten eigen reparatie en onderhoud in te kunnen voeren.",{"$f":"C34","v":"Bij een produktiviteit van 60 % en gemiddeld 200 overuren kost een vaste medewerker    € 26,15 per uur"}]
["Bedrijfsleidings-vergoeding","Onder bedrijfsleiding wordt verstaan de arbeid nodig is voor organisatie, planning, acquisitie en administratie."]
["Bedrijfsrisico","Bedrijfsrisico dient om de kosten voor onvoorziene omstandigheden zoals lagere benutting door extreme weersomstandigheden of een onverwachte snelle economische veroudering vanwege bijvoorbeeld politieke maatregelen.\nDe kosten voor bedrijfsrisico worden als opslagpercentage ingevoerd.\nOok de nog niet toegerekende kosten en de door u vereiste winst kunt in in dit percentage verwerken. "]
[{"$f":"A17","v":"Optie om andere eenheid in te voeren."},{"$f":"B17","v":"Onder eenheid wordt verstaan hectares, m3 (kuubs) m (strekkende meters enz.\nAls u bijvoorbeeld een hectaretarief wilt berekend, selecteert u \"Ja\" bij de vraag \"andere eenheid?\". Bij eenheid vult u in \"ha.\" en bij capaciteit de capaciteit per uur. Let op dit kan per situatie verschillen. Vervolgens verschijnt het hectaretarief.\nU kunt ook de optie \"mengtarief\" selecteren bij de vraag \"andere eenheid?\"\nEr verschijnt vervolgens een voorstel voor het gedeelte dat u als uurtarief kan hanteren. Dit voorstel wordt berekend door de arbeidskosten en brandstof. Wilt u een ander bedrag, dan kunt u dat invoeren in het betreffende blauwe vlak."}]
[{"$f":"A37","v":"Index berekenen"},{"$f":"B37","v":"Via deze optie is het mogelijk om de prijswijziging ten opzichte van het afgelopen jaar te berekenen. Deze index kan bijvoorbeeld gehanteerd worden bij verhoging van reeds vastgestelde prijzen. De invloed van wijziging in de uitgangspunten voor bijvoorbeeld onderhoud, hanteren van een ander afschrijvingsregime blijven buiten beschouwing.  De index van deze posten worden gerelateerd aan de vervangingswaarde. \nMet nadruk wijzen wij er wel op dat er kosten zijn die meer of minder stijgen dan de vervangingswaarde. Denk bijvoorbeeld aan de assurantiekosten. Als dit alles in de berekening mee te nemen, dient er voor zowel het voorgaande jaar  en dit jaar een complete kostprijsberekening te worden gedaan. Vervolgens kunt u het huidige tarief (a) delen op die van vorig jaar(b). \nIn formule ziet het er dan als volgt uit: (a / b) * 100% -1 = prijsindex"}]

{"sheet":"onderhoudspercentage","index":6,"n_rows":38,"n_cols":7,"rows_kept":38}
["Bepaling van het leeftijdsafhankelijke onderhoudspercentage "]
[]
["Uitgangspunt is dat op 2/3 van de levensduur 50% van de onderhoudskosten zijn gemaakt."]
[null,"(zie kwin veehouderij)"]
["Berekening","COj = {LVD x P/(GU x LVD)d} x (GU x GJ)d"]
["waarin:","COj = cumulatief onderhoudspercentage van de vervangingswaarde in jaar j"]
[null,"(j ligt tussen 0 en LVD)"]
[null,"LVD = totale levensduur in jaren"]
[null,"P = gemiddelde onderhoudskostenpercentage"]
[null,"GU = aantal gebruiksuren per jaar"]
[null,"GJ = aantal gebruiksjaren"]
[null,"d = exponent"]
[]
[]
[]
[{"$nulls":5},"Cumulatieve","% onderhoud in"]
[{"$nulls":3},"leeftijd","Gebruiksjaar","% onderhoud","het gebruiksjaar"]
[null,"totale levensduur in jaren",12,1,{"$f":"IF(D18>$C$18,0,D18)","v":1},{"$f":"(($C$18*$C$19)/POWER(($C$20*$C$18),$C$21))*POWER(($C$20*E18),$C$21)","v":{"v":0.007718292529701308,"d":"0.77%"}},{"$f":"F18","v":{"v":0.007718292529701308,"d":"0.77%"}}]
[null,"onderhoudspercentage",{"v":0.045,"d":"4.50%"},{"$f":"D18+1","v":2},2,{"v":0.025242677058090437,"d":"2.52%"},{"$f":"IF((F19-F18)>0,F19-F18,0)","v":{"v":0.017524384528389128,"d":"1.75%"}}]
[null,"gebruiksuren per jaar",100,{"$f":"D19+1","v":3},3,{"v":0.05048535410898658,"d":"5.05%"},{"$f":"IF((F20-F19)>0,F20-F19,0)","v":{"v":0.025242677050896143,"d":"2.52%"}}]
["d","exponent",1.709511291,4,4,{"v":0.0825561796999815,"d":"8.26%"},{"v":0.03207082559099492,"d":"3.21%"}]
[{"$nulls":3},5,5,{"v":0.12089778640335508,"d":"12.09%"},{"v":0.03834160670337358,"d":"3.83%"}]
[{"$nulls":3},6,6,{"v":0.16511235937643404,"d":"16.51%"},{"v":0.04421457297307896,"d":"4.42%"}]
[{"$nulls":3},7,7,{"v":0.2148947848911049,"d":"21.49%"},{"v":0.04978242551467085,"d":"4.98%"}]
[{"$nulls":3},8,8,{"v":0.2700000000384753,"d":"27.00%"},{"v":0.05510521514737041,"d":"5.51%"}]
[{"$nulls":3},9,9,{"v":0.3302247187058107,"d":"33.02%"},{"v":0.06022471866733542,"d":"6.02%"}]
[{"$nulls":3},10,10,{"v":0.3953962314170022,"d":"39.54%"},{"v":0.06517151271119148,"d":"6.52%"}]
[{"$nulls":3},11,11,{"v":0.4653650764289259,"d":"46.54%"},{"v":0.06996884501192369,"d":"7.00%"}]
[{"$nulls":3},12,12,{"v":0.54,"d":"54.00%"},{"v":0.07463492357107415,"d":"7.46%"}]
[{"$nulls":3},13,0,{"v":0,"d":"0.00%"},{"v":0,"d":"0.00%"}]
[{"$nulls":3},14,0,{"v":0,"d":"0.00%"},{"v":0,"d":"0.00%"}]
[{"$nulls":3},15,0,{"v":0,"d":"0.00%"},{"v":0,"d":"0.00%"}]
[{"$nulls":3},16,0,{"v":0,"d":"0.00%"},{"v":0,"d":"0.00%"}]
[{"$nulls":3},17,0,{"v":0,"d":"0.00%"},{"v":0,"d":"0.00%"}]
[{"$nulls":3},18,0,{"v":0,"d":"0.00%"},{"v":0,"d":"0.00%"}]
[{"$nulls":3},19,0,{"v":0,"d":"0.00%"},{"v":0,"d":"0.00%"}]
[{"$nulls":3},20,0,{"v":0,"d":"0.00%"},{"v":0,"d":"0.00%"}]
[null,"Totaal cumulatieve onderhoud aan het einde van de levensduur",{"$nulls":4},{"$f":"SUM(G18:G37)","v":{"v":0.54,"d":"54.00%"}}]